[Event "Titled Tuesday Blitz December 7 2021"]
[White "Khoroshev, Nikita"]
[Black "Mezentsev, Ivan"]
[WhiteFideId "14200287"]
[BlackFideId "13706195"]
[WhiteElo "2354"]
[BlackElo "2295"]
[Result "1-0"]
[Round "03"]
[TimeControl "180+1"]
[Date "2021.12.07"]
[WhiteClock "0:00:10"]
[BlackClock "0:00:02"]

1. e4 {[%clk 0:03:00]}  c5 {[%clk 0:02:58]} 2. c3 {[%clk 0:03:00]}  Nf6 {[%clk 0:02:57]} 3. e5 {[%clk 0:02:46]}  Nd5 {[%clk 0:02:56]} 4. Nf3 {[%clk 0:02:46]}  Nc6 {[%clk 0:02:53]} 5. d4 {[%clk 0:02:42]}  cxd4 {[%clk 0:02:52]} 6. cxd4 {[%clk 0:02:43]}  d6 {[%clk 0:02:52]} 7. exd6 {[%clk 0:02:41]}  e6 {[%clk 0:02:48]} 8. Nc3 {[%clk 0:02:40]}  Bxd6 {[%clk 0:02:40]} 9. Bd3 {[%clk 0:02:35]}  Be7 {[%clk 0:02:28]} 10. O-O {[%clk 0:02:33]}  O-O {[%clk 0:02:25]} 11. Re1 {[%clk 0:02:32]}  Nxc3 {[%clk 0:02:17]} 12. bxc3 {[%clk 0:02:32]}  b6 {[%clk 0:02:17]} 13. Be4 {[%clk 0:01:48]}  Bb7 {[%clk 0:02:17]} 14. Ne5 {[%clk 0:01:43]}  Na5 {[%clk 0:01:49]} 15. Bxh7+ {[%clk 0:01:11]}  Kxh7 {[%clk 0:01:45]} 16. Qh5+ {[%clk 0:01:11]}  Kg8 {[%clk 0:01:45]} 17. Re3 {[%clk 0:01:12]}  Qd5 {[%clk 0:01:31]} 18. Rg3 {[%clk 0:01:04]}  Bf6 {[%clk 0:00:43]} 19. Bh6 {[%clk 0:00:45]}  Rad8 {[%clk 0:00:17]} 20. Re1 {[%clk 0:00:22]}  Nc4 {[%clk 0:00:08]} 21. Bxg7 {[%clk 0:00:17]}  Bxg7 {[%clk 0:00:07]} 22. Qg4 {[%clk 0:00:17]}  Qxg2+ {[%clk 0:00:05]} 23. Rxg2 {[%clk 0:00:18]}  Bxg2 {[%clk 0:00:05]} 24. Kxg2 {[%clk 0:00:15]}  Nxe5 {[%clk 0:00:05]} 25. Rxe5 {[%clk 0:00:16]}  Rd5 {[%clk 0:00:04]} 26. Rxd5 {[%clk 0:00:15]}  exd5 {[%clk 0:00:04]} 27. Qd7 {[%clk 0:00:16]}  Bf6 {[%clk 0:00:02]} 28. Qxd5 {[%clk 0:00:16]}  Kg7 {[%clk 0:00:02]} 29. Qb7 {[%clk 0:00:15]}  Rd8 {[%clk 0:00:02]} 30. Qxa7 {[%clk 0:00:15]}  Rc8 {[%clk 0:00:03]} 31. Qa3 {[%clk 0:00:13]}  Rc4 {[%clk 0:00:03]} 32. Qb3 {[%clk 0:00:13]}  b5 {[%clk 0:00:03]} 33. Kf3 {[%clk 0:00:13]}  Kg6 {[%clk 0:00:03]} 34. Ke4 {[%clk 0:00:12]}  Kg7 {[%clk 0:00:03]} 35. Kd5 {[%clk 0:00:12]}  Kg6 {[%clk 0:00:03]} 36. f4 {[%clk 0:00:11]}  Kf5 {[%clk 0:00:03]} 37. a4 {[%clk 0:00:10]}  Rxa4 {[%clk 0:00:02]} 38. Qxb5 {[%clk 0:00:10]}  Ra1 {[%clk 0:00:02]} 39. Qd3+ {[%clk 0:00:09]}  Kxf4 {[%clk 0:00:02]} 40. Qh7 {[%clk 0:00:10]} 1-0


[Site "https://www.chess.com"]

[Event "Titled Tuesday Blitz December 7 2021"]
[White "Klyashtorny, Vladislav"]
[Black "Jaracz, Pawel"]
[WhiteFideId "4170938"]
[BlackFideId "1102222"]
[WhiteElo "2445"]
[BlackElo "2473"]
[Result "0-1"]
[Round "03"]
[TimeControl "180+1"]
[Date "2021.12.07"]
[WhiteClock "0:00:02"]
[BlackClock "0:01:17"]

1. e4 {[%clk 0:02:57]}  d6 {[%clk 0:02:42]} 2. d4 {[%clk 0:02:57]}  Nf6 {[%clk 0:02:42]} 3. Nc3 {[%clk 0:02:57]}  g6 {[%clk 0:02:42]} 4. Be3 {[%clk 0:02:53]}  a6 {[%clk 0:02:38]} 5. Qd2 {[%clk 0:02:52]}  b5 {[%clk 0:02:38]} 6. f3 {[%clk 0:02:53]}  Nbd7 {[%clk 0:02:36]} 7. g4 {[%clk 0:02:52]}  Nb6 {[%clk 0:02:36]} 8. g5 {[%clk 0:02:46]}  Nfd7 {[%clk 0:02:32]} 9. a4 {[%clk 0:02:46]}  b4 {[%clk 0:02:32]} 10. Nd1 {[%clk 0:02:46]}  a5 {[%clk 0:02:29]} 11. c3 {[%clk 0:02:29]}  bxc3 {[%clk 0:02:19]} 12. Nxc3 {[%clk 0:02:25]}  Bg7 {[%clk 0:02:18]} 13. h4 {[%clk 0:02:25]}  c5 {[%clk 0:02:04]} 14. h5 {[%clk 0:02:05]}  cxd4 {[%clk 0:02:02]} 15. Bxd4 {[%clk 0:02:04]}  O-O {[%clk 0:01:43]} 16. hxg6 {[%clk 0:02:02]}  fxg6 {[%clk 0:01:41]} 17. Bxg7 {[%clk 0:01:33]}  Kxg7 {[%clk 0:01:39]} 18. Qh2 {[%clk 0:01:33]}  h5 {[%clk 0:01:38]} 19. gxh6+ {[%clk 0:01:33]}  Kh8 {[%clk 0:01:37]} 20. Qg3 {[%clk 0:01:25]}  Qe8 {[%clk 0:01:31]} 21. Bb5 {[%clk 0:01:05]}  Qf7 {[%clk 0:01:30]} 22. h7 {[%clk 0:00:57]}  Ne5 {[%clk 0:01:28]} 23. O-O-O {[%clk 0:00:49]}  Be6 {[%clk 0:01:24]} 24. Rf1 {[%clk 0:00:35]}  Bc4 {[%clk 0:01:19]} 25. Bxc4 {[%clk 0:00:14]}  Qxc4 {[%clk 0:01:18]} 26. Qg2 {[%clk 0:00:04]}  Nd3+ {[%clk 0:01:17]} 27. Kc2 {[%clk 0:00:02]}  Rab8 {[%clk 0:01:17]} 0-1


[Site "https://www.chess.com"]

[Event "Titled Tuesday Blitz December 7 2021"]
[White "Korchmar, Vasiliy"]
[Black "Pranav, V"]
[WhiteFideId "24131750"]
[BlackFideId "25060783"]
[WhiteElo "2370"]
[BlackElo "2351"]
[Result "0-1"]
[Round "03"]
[TimeControl "180+1"]
[Date "2021.12.07"]
[WhiteClock "0:00:01"]
[BlackClock "0:00:21"]

1. e4 {[%clk 0:03:00]}  e5 {[%clk 0:02:59]} 2. Nf3 {[%clk 0:03:00]}  Nc6 {[%clk 0:03:00]} 3. Bb5 {[%clk 0:02:57]}  a6 {[%clk 0:02:59]} 4. Ba4 {[%clk 0:02:57]}  d6 {[%clk 0:02:59]} 5. c4 {[%clk 0:02:55]}  Bd7 {[%clk 0:02:59]} 6. Nc3 {[%clk 0:02:54]}  g6 {[%clk 0:02:59]} 7. O-O {[%clk 0:02:54]}  Bg7 {[%clk 0:02:59]} 8. d3 {[%clk 0:02:51]}  Nf6 {[%clk 0:02:59]} 9. Nd5 {[%clk 0:02:42]}  h6 {[%clk 0:02:50]} 10. h3 {[%clk 0:02:37]}  O-O {[%clk 0:02:50]} 11. Be3 {[%clk 0:02:37]}  Nxd5 {[%clk 0:02:48]} 12. cxd5 {[%clk 0:02:38]}  Ne7 {[%clk 0:02:47]} 13. Bxd7 {[%clk 0:02:31]}  Qxd7 {[%clk 0:02:48]} 14. d4 {[%clk 0:02:31]}  f5 {[%clk 0:02:42]} 15. dxe5 {[%clk 0:02:29]}  fxe4 {[%clk 0:02:41]} 16. exd6 {[%clk 0:01:34]}  Qxd6 {[%clk 0:02:38]} 17. Nd2 {[%clk 0:01:17]}  Qxd5 {[%clk 0:02:38]} 18. Qc2 {[%clk 0:01:17]}  Nf5 {[%clk 0:02:27]} 19. Nxe4 {[%clk 0:01:15]}  Rae8 {[%clk 0:02:26]} 20. Nc3 {[%clk 0:01:12]}  Qc6 {[%clk 0:02:25]} 21. Qb3+ {[%clk 0:01:00]}  Kh7 {[%clk 0:02:25]} 22. Nd5 {[%clk 0:01:00]}  Re5 {[%clk 0:02:19]} 23. Rfd1 {[%clk 0:00:58]}  Nxe3 {[%clk 0:02:08]} 24. fxe3 {[%clk 0:00:44]}  Rg5 {[%clk 0:02:07]} 25. Rac1 {[%clk 0:00:34]}  Qd6 {[%clk 0:01:43]} 26. Rxc7 {[%clk 0:00:23]}  Qg3 {[%clk 0:01:33]} 27. Nf4 {[%clk 0:00:08]}  h5 {[%clk 0:00:31]} 28. Rxg7+ {[%clk 0:00:07]}  Kxg7 {[%clk 0:00:29]} 29. Ne6+ {[%clk 0:00:06]}  Kh6 {[%clk 0:00:29]} 30. Nxg5 {[%clk 0:00:05]}  Qxg5 {[%clk 0:00:26]} 31. Qxb7 {[%clk 0:00:04]}  Qxe3+ {[%clk 0:00:26]} 32. Kh1 {[%clk 0:00:05]}  Rf2 {[%clk 0:00:25]} 33. Qxa6 {[%clk 0:00:02]}  Qe4 {[%clk 0:00:24]} 34. Rg1 {[%clk 0:00:01]}  Rxb2 {[%clk 0:00:21]} 35. Qa7 {[%clk 0:00:01]}  Re2 {[%clk 0:00:20]} 36. a4 {[%clk 0:00:01]}  Re3 {[%clk 0:00:21]} 37. a5 {[%clk 0:00:01]}  Rxh3# {[%clk 0:00:21]} 0-1


[Site "https://www.chess.com"]

[Event "Titled Tuesday Blitz December 7 2021"]
[White "Krutko, Anatoly"]
[Black "Tanenbaum, Zachary"]
[WhiteFideId "4185862"]
[BlackFideId "2060850"]
[WhiteElo "2378"]
[BlackElo "2168"]
[Result "1-0"]
[Round "03"]
[TimeControl "180+1"]
[Date "2021.12.07"]
[WhiteClock "0:00:10"]
[BlackClock "0:00:23"]

1. d4 {[%clk 0:03:00]}  d5 {[%clk 0:03:00]} 2. c4 {[%clk 0:03:00]}  dxc4 {[%clk 0:03:00]} 3. Nf3 {[%clk 0:03:00]}  a6 {[%clk 0:03:01]} 4. e3 {[%clk 0:02:54]}  Nf6 {[%clk 0:03:01]} 5. Bxc4 {[%clk 0:02:53]}  e6 {[%clk 0:03:02]} 6. O-O {[%clk 0:02:53]}  c5 {[%clk 0:03:02]} 7. Nc3 {[%clk 0:02:54]}  b5 {[%clk 0:03:01]} 8. Bb3 {[%clk 0:02:54]}  Bb7 {[%clk 0:03:01]} 9. dxc5 {[%clk 0:02:54]}  Bxc5 {[%clk 0:03:00]} 10. Qe2 {[%clk 0:02:55]}  O-O {[%clk 0:02:58]} 11. Rd1 {[%clk 0:02:53]}  Nbd7 {[%clk 0:02:58]} 12. Bc2 {[%clk 0:02:53]}  Qe7 {[%clk 0:02:55]} 13. b3 {[%clk 0:02:54]}  Rac8 {[%clk 0:02:54]} 14. Bb2 {[%clk 0:02:54]}  Ba3 {[%clk 0:02:52]} 15. Bd3 {[%clk 0:02:27]}  Rc7 {[%clk 0:02:34]} 16. Rac1 {[%clk 0:02:19]}  Rfc8 {[%clk 0:02:31]} 17. Ng5 {[%clk 0:02:14]}  Bxb2 {[%clk 0:01:26]} 18. Qxb2 {[%clk 0:02:13]}  Rxc3 {[%clk 0:01:06]} 19. Rxc3 {[%clk 0:02:07]}  Rxc3 {[%clk 0:01:07]} 20. Qxc3 {[%clk 0:02:06]}  Nd5 {[%clk 0:01:06]} 21. Bxh7+ {[%clk 0:01:30]}  Kh8 {[%clk 0:00:23]} 22. Rxd5 {[%clk 0:01:28]}  Bxd5 {[%clk 0:00:18]} 23. Qc8+ {[%clk 0:01:25]}  Nf8 {[%clk 0:00:18]} 24. Be4 {[%clk 0:01:14]}  Bxe4 {[%clk 0:00:16]} 25. Nxe4 {[%clk 0:01:14]}  Qb4 {[%clk 0:00:15]} 26. h4 {[%clk 0:01:06]}  Kg8 {[%clk 0:00:12]} 27. Qb7 {[%clk 0:00:59]}  Ng6 {[%clk 0:00:10]} 28. Ng5 {[%clk 0:00:54]}  Qf8 {[%clk 0:00:04]} 29. g3 {[%clk 0:00:50]}  b4 {[%clk 0:00:02]} 30. Qe4 {[%clk 0:00:48]}  Qe7 {[%clk 0:00:01]} 31. f4 {[%clk 0:00:45]}  Nf8 {[%clk 0:00:01]} 32. Nf3 {[%clk 0:00:37]}  a5 {[%clk 0:00:02]} 33. Ne5 {[%clk 0:00:36]}  Qd6 {[%clk 0:00:02]} 34. Qd4 {[%clk 0:00:34]}  Qc7 {[%clk 0:00:02]} 35. Nc4 {[%clk 0:00:25]}  f6 {[%clk 0:00:02]} 36. Qd6 {[%clk 0:00:25]}  Qc8 {[%clk 0:00:02]} 37. h5 {[%clk 0:00:23]}  a4 {[%clk 0:00:02]} 38. Qxb4 {[%clk 0:00:22]}  axb3 {[%clk 0:00:02]} 39. axb3 {[%clk 0:00:22]}  Qd7 {[%clk 0:00:03]} 40. Qd6 {[%clk 0:00:21]}  Qb7 {[%clk 0:00:03]} 41. Nd2 {[%clk 0:00:10]}  Qb5 {[%clk 0:00:03]} 42. Kf2 {[%clk 0:00:09]}  Qa5 {[%clk 0:00:02]} 43. Qd4 {[%clk 0:00:08]}  Qxh5 {[%clk 0:00:03]} 44. Nf3 {[%clk 0:00:05]}  Qh1 {[%clk 0:00:03]} 45. b4 {[%clk 0:00:05]}  Qb1 {[%clk 0:00:03]} 46. Qd2 {[%clk 0:00:04]}  Qb3 {[%clk 0:00:04]} 47. Kg2 {[%clk 0:00:05]}  Qc4 {[%clk 0:00:04]} 48. Nd4 {[%clk 0:00:05]}  Qc6+ {[%clk 0:00:05]} 49. Nxc6 {[%clk 0:00:04]}  e5 {[%clk 0:00:05]} 50. b5 {[%clk 0:00:04]}  exf4 {[%clk 0:00:06]} 51. exf4 {[%clk 0:00:05]}  Ng6 {[%clk 0:00:06]} 52. Qa2+ {[%clk 0:00:06]}  Kh7 {[%clk 0:00:06]} 53. Qc2 {[%clk 0:00:06]}  Kh6 {[%clk 0:00:07]} 54. Nd8 {[%clk 0:00:05]}  f5 {[%clk 0:00:08]} 55. Nf7+ {[%clk 0:00:05]}  Kh5 {[%clk 0:00:09]} 56. Ng5 {[%clk 0:00:05]}  Kh6 {[%clk 0:00:09]} 57. Qxf5 {[%clk 0:00:05]}  Nf8 {[%clk 0:00:09]} 58. Qxf8 {[%clk 0:00:04]}  Kh5 {[%clk 0:00:10]} 59. Qf7+ {[%clk 0:00:04]}  Kg4 {[%clk 0:00:11]} 60. Qc4 {[%clk 0:00:04]}  Kf5 {[%clk 0:00:12]} 61. b6 {[%clk 0:00:05]}  Kg6 {[%clk 0:00:12]} 62. Nf3 {[%clk 0:00:05]}  Kh6 {[%clk 0:00:13]} 63. b7 {[%clk 0:00:06]}  g6 {[%clk 0:00:14]} 64. Ne5 {[%clk 0:00:07]}  g5 {[%clk 0:00:15]} 65. Nf3 {[%clk 0:00:07]}  Kh5 {[%clk 0:00:16]} 66. g4+ {[%clk 0:00:07]}  Kxg4 {[%clk 0:00:16]} 67. fxg5+ {[%clk 0:00:07]}  Kh5 {[%clk 0:00:17]} 68. Qh4+ {[%clk 0:00:08]}  Kg6 {[%clk 0:00:18]} 69. Qh6+ {[%clk 0:00:09]}  Kf5 {[%clk 0:00:19]} 70. Qf6+ {[%clk 0:00:09]}  Ke4 {[%clk 0:00:20]} 71. Qe5+ {[%clk 0:00:10]}  Kd3 {[%clk 0:00:20]} 72. g6 {[%clk 0:00:10]}  Kc2 {[%clk 0:00:20]} 73. g7 {[%clk 0:00:11]}  Kd1 {[%clk 0:00:21]} 74. b8=Q {[%clk 0:00:11]}  Kc2 {[%clk 0:00:22]} 75. Qbc7+ {[%clk 0:00:10]}  Kd1 {[%clk 0:00:23]} 76. Qe1# {[%clk 0:00:10]} 1-0


[Site "https://www.chess.com"]

[Event "Titled Tuesday Blitz December 7 2021"]
[White "Licznerski, Lukasz"]
[Black "Ronka, Erik"]
[WhiteFideId "1179250"]
[BlackFideId "505080"]
[WhiteElo "2403"]
[BlackElo "2264"]
[Result "0-1"]
[Round "03"]
[TimeControl "180+1"]
[Date "2021.12.07"]
[WhiteClock "0:00:01"]
[BlackClock "0:00:16"]

1. e4 {[%clk 0:03:00]}  c6 {[%clk 0:03:00]} 2. d4 {[%clk 0:03:00]}  d5 {[%clk 0:03:01]} 3. Nc3 {[%clk 0:02:59]}  dxe4 {[%clk 0:03:01]} 4. Nxe4 {[%clk 0:03:00]}  Bf5 {[%clk 0:03:01]} 5. Ng3 {[%clk 0:03:00]}  Bg6 {[%clk 0:03:02]} 6. h4 {[%clk 0:03:00]}  h6 {[%clk 0:03:02]} 7. Nf3 {[%clk 0:03:00]}  Nd7 {[%clk 0:03:03]} 8. h5 {[%clk 0:03:01]}  Bh7 {[%clk 0:03:03]} 9. Bd3 {[%clk 0:03:01]}  Bxd3 {[%clk 0:03:04]} 10. Qxd3 {[%clk 0:03:01]}  e6 {[%clk 0:03:05]} 11. Bd2 {[%clk 0:03:02]}  Qc7 {[%clk 0:03:05]} 12. O-O-O {[%clk 0:03:01]}  Ngf6 {[%clk 0:03:06]} 13. Kb1 {[%clk 0:03:01]}  O-O-O {[%clk 0:03:06]} 14. Ne4 {[%clk 0:02:52]}  c5 {[%clk 0:02:58]} 15. g3 {[%clk 0:02:22]}  cxd4 {[%clk 0:02:55]} 16. Nxf6 {[%clk 0:02:16]}  Nxf6 {[%clk 0:02:51]} 17. Nxd4 {[%clk 0:01:46]}  Bc5 {[%clk 0:02:48]} 18. Bf4 {[%clk 0:01:31]}  Bd6 {[%clk 0:02:10]} 19. Be3 {[%clk 0:00:43]}  a6 {[%clk 0:02:07]} 20. c4 {[%clk 0:00:36]}  Bc5 {[%clk 0:02:04]} 21. Qe2 {[%clk 0:00:26]}  Rd7 {[%clk 0:01:58]} 22. Nc2 {[%clk 0:00:24]}  Rhd8 {[%clk 0:01:45]} 23. Rxd7 {[%clk 0:00:23]}  Rxd7 {[%clk 0:01:45]} 24. g4 {[%clk 0:00:19]}  Bxe3 {[%clk 0:01:30]} 25. Nxe3 {[%clk 0:00:20]}  Qf4 {[%clk 0:01:29]} 26. f3 {[%clk 0:00:19]}  Ne4 {[%clk 0:01:22]} 27. Rd1 {[%clk 0:00:15]}  Rxd1+ {[%clk 0:00:58]} 28. Nxd1 {[%clk 0:00:16]}  Nd2+ {[%clk 0:00:59]} 29. Kc2 {[%clk 0:00:16]}  Nxf3 {[%clk 0:00:56]} 30. Kc3 {[%clk 0:00:08]}  Qxg4 {[%clk 0:00:46]} 31. Ne3 {[%clk 0:00:07]}  Qd4+ {[%clk 0:00:46]} 32. Kc2 {[%clk 0:00:07]}  Ne5 {[%clk 0:00:46]} 33. b3 {[%clk 0:00:05]}  f5 {[%clk 0:00:42]} 34. Ng2 {[%clk 0:00:03]}  f4 {[%clk 0:00:34]} 35. Nh4 {[%clk 0:00:04]}  Kd7 {[%clk 0:00:28]} 36. a3 {[%clk 0:00:02]}  b5 {[%clk 0:00:16]} 37. cxb5 {[%clk 0:00:02]}  Qc5+ {[%clk 0:00:16]} 38. Kd2 {[%clk 0:00:02]}  axb5 {[%clk 0:00:16]} 39. Nf3 {[%clk 0:00:01]}  Qd5+ {[%clk 0:00:15]} 40. Kc1 {[%clk 0:00:01]}  Nxf3 {[%clk 0:00:16]} 41. a4 {[%clk 0:00:01]}  Nd4 {[%clk 0:00:16]} 0-1


[Site "https://www.chess.com"]

[Event "Titled Tuesday Blitz December 7 2021"]
[White "Lomaia, Diana"]
[Black "Boyer, Mahel"]
[WhiteFideId "13612476"]
[BlackFideId "45102422"]
[WhiteElo "1744"]
[BlackElo "2328"]
[Result "1-0"]
[Round "03"]
[TimeControl "180+1"]
[Date "2021.12.07"]
[WhiteClock "0:01:33"]
[BlackClock "0:00:04"]

1. d4 {[%clk 0:03:00]}  g6 {[%clk 0:03:00]} 2. Nf3 {[%clk 0:03:00]}  Bg7 {[%clk 0:02:57]} 3. c4 {[%clk 0:03:01]}  d6 {[%clk 0:02:56]} 4. g3 {[%clk 0:03:01]}  e5 {[%clk 0:02:54]} 5. dxe5 {[%clk 0:02:59]}  dxe5 {[%clk 0:02:54]} 6. Qxd8+ {[%clk 0:02:59]}  Kxd8 {[%clk 0:02:55]} 7. Bg2 {[%clk 0:03:00]}  c6 {[%clk 0:02:55]} 8. O-O {[%clk 0:02:59]}  Kc7 {[%clk 0:02:55]} 9. Nc3 {[%clk 0:02:59]}  Be6 {[%clk 0:02:55]} 10. Nd2 {[%clk 0:02:45]}  Nd7 {[%clk 0:02:53]} 11. b3 {[%clk 0:02:44]}  Ne7 {[%clk 0:02:05]} 12. Bb2 {[%clk 0:02:43]}  Nc8 {[%clk 0:02:05]} 13. Rfd1 {[%clk 0:02:42]}  a5 {[%clk 0:02:04]} 14. Nde4 {[%clk 0:02:40]}  f5 {[%clk 0:02:00]} 15. Ng5 {[%clk 0:02:39]}  Bg8 {[%clk 0:02:00]} 16. e4 {[%clk 0:02:37]}  h6 {[%clk 0:01:51]} 17. Nf3 {[%clk 0:02:37]}  Ncb6 {[%clk 0:01:35]} 18. Rac1 {[%clk 0:02:30]}  a4 {[%clk 0:01:34]} 19. c5 {[%clk 0:02:28]}  Nc8 {[%clk 0:00:21]} 20. Nxa4 {[%clk 0:02:28]}  Bh7 {[%clk 0:00:02]} 21. Bh3 {[%clk 0:02:20]}  Re8 {[%clk 0:00:02]} 22. Rc2 {[%clk 0:02:16]}  Nf6 {[%clk 0:00:01]} 23. Bxe5+ {[%clk 0:02:11]}  Rxe5 {[%clk 0:00:02]} 24. Nxe5 {[%clk 0:02:11]}  Nxe4 {[%clk 0:00:02]} 25. Nf7 {[%clk 0:02:07]}  Ne7 {[%clk 0:00:01]} 26. Nb6 {[%clk 0:02:05]}  Re8 {[%clk 0:00:01]} 27. Rd7+ {[%clk 0:02:05]}  Kb8 {[%clk 0:00:01]} 28. Nd6 {[%clk 0:02:04]}  Nxd6 {[%clk 0:00:01]} 29. cxd6 {[%clk 0:02:04]}  Nc8 {[%clk 0:00:01]} 30. Nxc8 {[%clk 0:02:01]}  Re1+ {[%clk 0:00:02]} 31. Bf1 {[%clk 0:01:59]}  Bg8 {[%clk 0:00:03]} 32. Rxg7 {[%clk 0:01:57]}  Be6 {[%clk 0:00:03]} 33. d7 {[%clk 0:01:55]}  Kc7 {[%clk 0:00:03]} 34. Nb6 {[%clk 0:01:45]}  Rd1 {[%clk 0:00:04]} 35. Re2 {[%clk 0:01:33]} 1-0


[Site "https://www.chess.com"]

[Event "Titled Tuesday Blitz December 7 2021"]
[White "Maksimovic, Bojan"]
[Black "Dorokhin, Mykhailo"]
[WhiteFideId "14408120"]
[BlackFideId "14114178"]
[WhiteElo "2458"]
[BlackElo "2280"]
[Result "1-0"]
[Round "03"]
[TimeControl "180+1"]
[Date "2021.12.07"]
[WhiteClock "0:01:13"]
[BlackClock "0:01:48"]

1. e4 {[%clk 0:03:00]}  c6 {[%clk 0:02:59]} 2. d4 {[%clk 0:03:00]}  d5 {[%clk 0:03:00]} 3. Nc3 {[%clk 0:03:00]}  dxe4 {[%clk 0:03:00]} 4. Nxe4 {[%clk 0:03:01]}  Nf6 {[%clk 0:03:01]} 5. Nxf6+ {[%clk 0:03:01]}  gxf6 {[%clk 0:03:01]} 6. c3 {[%clk 0:03:01]}  h5 {[%clk 0:03:01]} 7. Bd3 {[%clk 0:03:01]}  h4 {[%clk 0:03:01]} 8. h3 {[%clk 0:02:58]}  Qd5 {[%clk 0:03:02]} 9. Nf3 {[%clk 0:02:56]}  Bf5 {[%clk 0:03:02]} 10. O-O {[%clk 0:02:43]}  Bxd3 {[%clk 0:03:00]} 11. Qxd3 {[%clk 0:02:44]}  Nd7 {[%clk 0:02:58]} 12. c4 {[%clk 0:02:43]}  Qh5 {[%clk 0:02:59]} 13. Bf4 {[%clk 0:02:41]}  O-O-O {[%clk 0:02:58]} 14. Qa3 {[%clk 0:02:35]}  e5 {[%clk 0:02:58]} 15. Qxa7 {[%clk 0:02:26]}  exf4 {[%clk 0:02:58]} 16. c5 {[%clk 0:02:18]}  Rg8 {[%clk 0:02:50]} 17. Kh1 {[%clk 0:02:05]}  Bh6 {[%clk 0:02:09]} 18. Rac1 {[%clk 0:01:49]}  Rxg2 {[%clk 0:02:08]} 19. Rc3 {[%clk 0:01:45]}  Rdg8 {[%clk 0:01:55]} 20. Rb3 {[%clk 0:01:30]}  Qf5 {[%clk 0:01:53]} 21. Qa8+ {[%clk 0:01:21]}  Nb8 {[%clk 0:01:50]} 22. Qxb7+ {[%clk 0:01:20]}  Kd8 {[%clk 0:01:51]} 23. Qxb8+ {[%clk 0:01:15]}  Ke7 {[%clk 0:01:48]} 24. Qd6+ {[%clk 0:01:14]}  Ke8 {[%clk 0:01:48]} 25. Rb8+ {[%clk 0:01:13]} 1-0


[Site "https://www.chess.com"]

[Event "Titled Tuesday Blitz December 7 2021"]
[White "Martinez Reyes, Pedro Ramon"]
[Black "Rasulov, Vugar"]
[WhiteFideId "3901807"]
[BlackFideId "13402390"]
[WhiteElo "2410"]
[BlackElo "2560"]
[Result "0-1"]
[Round "03"]
[TimeControl "180+1"]
[Date "2021.12.07"]
[WhiteClock "0:00:09"]
[BlackClock "0:00:42"]

1. e4 {[%clk 0:02:46]}  c6 {[%clk 0:02:59]} 2. c4 {[%clk 0:02:45]}  g6 {[%clk 0:02:58]} 3. d4 {[%clk 0:02:45]}  Bg7 {[%clk 0:02:59]} 4. Nc3 {[%clk 0:02:44]}  d6 {[%clk 0:02:58]} 5. Be2 {[%clk 0:02:43]}  Nf6 {[%clk 0:02:58]} 6. g4 {[%clk 0:02:43]}  O-O {[%clk 0:02:55]} 7. g5 {[%clk 0:02:43]}  Nfd7 {[%clk 0:02:48]} 8. Be3 {[%clk 0:02:41]}  e5 {[%clk 0:02:38]} 9. d5 {[%clk 0:02:40]}  cxd5 {[%clk 0:02:39]} 10. exd5 {[%clk 0:02:32]}  f5 {[%clk 0:02:37]} 11. gxf6 {[%clk 0:02:29]}  Nxf6 {[%clk 0:02:37]} 12. h4 {[%clk 0:02:25]}  Bf5 {[%clk 0:02:35]} 13. Qd2 {[%clk 0:02:17]}  Na6 {[%clk 0:02:34]} 14. h5 {[%clk 0:02:13]}  Nb4 {[%clk 0:02:28]} 15. O-O-O {[%clk 0:02:08]}  Qa5 {[%clk 0:02:09]} 16. a3 {[%clk 0:02:05]}  Ne4 {[%clk 0:02:00]} 17. Nxe4 {[%clk 0:02:05]}  Na2+ {[%clk 0:01:54]} 18. Kb1 {[%clk 0:02:05]}  Bxe4+ {[%clk 0:01:54]} 19. Kxa2 {[%clk 0:02:05]}  Qxd2 {[%clk 0:01:54]} 20. Rxd2 {[%clk 0:02:03]}  Bxh1 {[%clk 0:01:55]} 21. hxg6 {[%clk 0:02:03]}  hxg6 {[%clk 0:01:55]} 22. Bg4 {[%clk 0:01:52]}  Rf5 {[%clk 0:01:48]} 23. f3 {[%clk 0:01:38]}  e4 {[%clk 0:01:43]} 24. fxe4 {[%clk 0:01:24]}  Bxe4 {[%clk 0:01:38]} 25. Bxf5 {[%clk 0:01:24]}  gxf5 {[%clk 0:01:38]} 26. Ne2 {[%clk 0:01:19]}  Kf7 {[%clk 0:01:38]} 27. Ng3 {[%clk 0:01:17]}  Be5 {[%clk 0:01:19]} 28. Nxe4 {[%clk 0:01:12]}  fxe4 {[%clk 0:01:20]} 29. Rf2+ {[%clk 0:01:13]}  Kg6 {[%clk 0:01:19]} 30. Rg2+ {[%clk 0:01:12]}  Kf5 {[%clk 0:01:19]} 31. Rg5+ {[%clk 0:01:12]}  Kf6 {[%clk 0:01:20]} 32. Rg4 {[%clk 0:01:11]}  Rh8 {[%clk 0:01:15]} 33. Rxe4 {[%clk 0:01:04]}  Kf5 {[%clk 0:01:15]} 34. Rxe5+ {[%clk 0:01:01]}  Kxe5 {[%clk 0:01:09]} 35. Bxa7 {[%clk 0:01:02]}  Ke4 {[%clk 0:01:10]} 36. Kb3 {[%clk 0:00:57]}  Kd3 {[%clk 0:01:08]} 37. Kb4 {[%clk 0:00:51]}  Kc2 {[%clk 0:00:51]} 38. b3 {[%clk 0:00:49]}  Rh3 {[%clk 0:00:50]} 39. Bb8 {[%clk 0:00:39]}  Rxb3+ {[%clk 0:00:49]} 40. Ka4 {[%clk 0:00:39]}  Kc3 {[%clk 0:00:45]} 41. Bxd6 {[%clk 0:00:34]}  Kxc4 {[%clk 0:00:45]} 42. Bb4 {[%clk 0:00:32]}  b6 {[%clk 0:00:41]} 43. d6 {[%clk 0:00:24]}  Rd3 {[%clk 0:00:41]} 44. Be1 {[%clk 0:00:09]}  Rd5 {[%clk 0:00:41]} 45. Bb4 {[%clk 0:00:10]}  Ra5+ {[%clk 0:00:41]} 46. Bxa5 {[%clk 0:00:09]}  b5# {[%clk 0:00:42]} 0-1


[Site "https://www.chess.com"]

[Event "Titled Tuesday Blitz December 7 2021"]
[White "Mirzanurov, Bulat"]
[Black "Nazari, Arad"]
[WhiteFideId "4184521"]
[BlackFideId "12577324"]
[WhiteElo "2116"]
[BlackElo "2119"]
[Result "0-1"]
[Round "03"]
[TimeControl "180+1"]
[Date "2021.12.07"]
[WhiteClock "0:00:04"]
[BlackClock "0:00:41"]

1. e4 {[%clk 0:03:00]}  c5 {[%clk 0:02:56]} 2. Nf3 {[%clk 0:03:00]}  d6 {[%clk 0:02:51]} 3. d4 {[%clk 0:02:58]}  cxd4 {[%clk 0:02:51]} 4. Nxd4 {[%clk 0:02:58]}  Nf6 {[%clk 0:02:48]} 5. Nc3 {[%clk 0:02:58]}  a6 {[%clk 0:02:40]} 6. Bg5 {[%clk 0:02:56]}  Nbd7 {[%clk 0:02:33]} 7. Qe2 {[%clk 0:02:51]}  e6 {[%clk 0:02:27]} 8. f4 {[%clk 0:02:44]}  Qc7 {[%clk 0:02:19]} 9. O-O-O {[%clk 0:02:41]}  b5 {[%clk 0:02:15]} 10. a3 {[%clk 0:02:38]}  Bb7 {[%clk 0:02:14]} 11. g4 {[%clk 0:02:35]}  Be7 {[%clk 0:02:13]} 12. Bg2 {[%clk 0:02:34]}  Rc8 {[%clk 0:02:10]} 13. Kb1 {[%clk 0:02:33]}  O-O {[%clk 0:02:08]} 14. h4 {[%clk 0:02:28]}  Nc5 {[%clk 0:01:53]} 15. Bxf6 {[%clk 0:02:24]}  Bxf6 {[%clk 0:01:50]} 16. g5 {[%clk 0:02:20]}  Bxd4 {[%clk 0:01:49]} 17. Rxd4 {[%clk 0:02:18]}  e5 {[%clk 0:01:48]} 18. fxe5 {[%clk 0:02:11]}  dxe5 {[%clk 0:01:49]} 19. Rd2 {[%clk 0:02:09]}  Ne6 {[%clk 0:01:47]} 20. Qg4 {[%clk 0:02:01]}  Qa5 {[%clk 0:01:43]} 21. h5 {[%clk 0:01:58]}  Rxc3 {[%clk 0:01:27]} 22. bxc3 {[%clk 0:01:54]}  Nc5 {[%clk 0:01:28]} 23. g6 {[%clk 0:01:50]}  Qxc3 {[%clk 0:01:21]} 24. gxh7+ {[%clk 0:01:44]}  Kh8 {[%clk 0:01:20]} 25. h6 {[%clk 0:01:43]}  gxh6 {[%clk 0:01:02]} 26. Rf2 {[%clk 0:00:27]}  Na4 {[%clk 0:00:54]} 27. Kc1 {[%clk 0:00:25]}  Rd8 {[%clk 0:00:45]} 28. Qg8+ {[%clk 0:00:04]}  Rxg8 {[%clk 0:00:41]} 0-1


[Site "https://www.chess.com"]